{"text_format":"3","workbook":"xlsx","n_sheets":6,"sheets":["SEMESTR","POČET KREDITŮ","ROZPOČET","ČISTÉ MĚSÍČNÍ VÝDAJE","SEMESTRÁLNÍ VÝDAJE","KNIHY"],"not_rendered":{"defined_names":21},"read":"whole","date_system":"1900"}

{"sheet":"SEMESTR","index":0,"n_rows":29,"n_cols":9,"rows_kept":29,"merged":[[2,3,2,4]]}
[null,"ROZVRH"]
[null,"PODZIMNÍ SEMESTR"]
[null,null,"ČAS ZAHÁJENÍ","ČASOVÝ INTERVAL",null,"ROK"]
[null,null,"09:00:00",60,"(v minutách)"]
[null,"ČAS ","PO","ÚT","ST","ČT","PÁ","SO","NE"]
[null,{"$f":"PočátečníČas+TIME(0,(ROW(A1)-1)*ČasovýInterval,0)","v":"09:00:00"},"Snídaně","Snídaně","Snídaně","Snídaně","Snídaně"]
[null,"10:00:00","Podnikání: Přednáška Budova B, místnost 256"]
[null,"11:00:00",{"$nulls":3},"Fyzika: Laboratorní práce \nBudova J, místnost 309"]
[null,"12:00:00"]
[null,"13:00:00"]
[null,"14:00:00"]
[null,"15:00:00"]
[null,"16:00:00"]
[null,"17:00:00"]
[null,"18:00:00"]
[null,"19:00:00"]
[null,"20:00:00"]
[null,"21:00:00"]
[null,"22:00:00"]
[null,"23:00:00"]
[null,1]
[null,1.0416666666666665]
[null,1.0833333333333335]
[null,1.125]
[null,1.1666666666666665]
[null,1.2083333333333335]
[null,1.25]
[null,1.2916666666666665]
[null,1.3333333333333335]

{"sheet":"POČET KREDITŮ","index":1,"n_rows":17,"n_cols":8,"rows_kept":17}
[null,"VŠ STUDIUM"]
[null,"PLÁNOVÁNÍ KREDITŮ"]
[null,"Titul",{"$f":"Rok","v":"ROK"}]
[null,"CELKOVÝ PRŮBĚH",null,"CELKOVÝ PRŮBĚH"]
[null,{"$f":"AVERAGE(Kurzy[HODNOCENÍ])","v":3.5},{"$f":"IFERROR(TEXT(AVERAGEIF(Kurzy[DOKONČENO],\"Ano\",Kurzy[HODNOCENÍ]),\"0,00\"),\"0,00\")&\" Aktuální bodový průměr\"","v":"3,50 Aktuální bodový průměr"},{"$f":"COUNTIF(Kurzy[DOKONČENO],\"Ano\")/COUNTA(Kurzy[NÁZEV KURZU])","v":0.6666666666666666},{"$f":"\"Dokončeno \"&TEXT(COUNTIF(Kurzy[DOKONČENO],\"Ano\")/COUNTA(Kurzy[NÁZEV KURZU]),\"0%\")","v":"Dokončeno 67%"}]
[null,"Poznámka: Do následujícího souhrnu kreditů se automaticky vyplní vaše záznamy z tabulky VŠ kurzů dole."]
[null,"POŽADAVEK","CELKEM KREDITŮ","ZÍSKANÝ POČET","POTŘEBNÝ POČET"]
[null,"Hlavní předmět",{"$f":"IF(SUMIF(Kurzy[POŽADAVEK],'POČET KREDITŮ'!$B8,Kurzy[POČET KREDITŮ])=0,\"0\",SUMIF(Kurzy[POŽADAVEK],'POČET KREDITŮ'!$B8,Kurzy[POČET KREDITŮ]))","v":4},{"$f":"SUMIFS(Kurzy[POČET KREDITŮ],Kurzy[POŽADAVEK],'POČET KREDITŮ'!$B8,Kurzy[DOKONČENO],\"Ano\")","v":4},{"$f":"SUMIF(Kurzy[POŽADAVEK],'POČET KREDITŮ'!$B8,Kurzy[POČET KREDITŮ])-SUMIFS(Kurzy[POČET KREDITŮ],Kurzy[POŽADAVEK],'POČET KREDITŮ'!$B8,Kurzy[DOKONČENO],\"Ano\")","v":0}]
[null,"Vedlejší předmět",{"$f":"IF(SUMIF(Kurzy[POŽADAVEK],'POČET KREDITŮ'!$B9,Kurzy[POČET KREDITŮ])=0,\"0\",SUMIF(Kurzy[POŽADAVEK],'POČET KREDITŮ'!$B9,Kurzy[POČET KREDITŮ]))","v":3},{"$f":"SUMIFS(Kurzy[POČET KREDITŮ],Kurzy[POŽADAVEK],'POČET KREDITŮ'!$B9,Kurzy[DOKONČENO],\"Ano\")","v":0},{"$f":"SUMIF(Kurzy[POŽADAVEK],'POČET KREDITŮ'!$B9,Kurzy[POČET KREDITŮ])-SUMIFS(Kurzy[POČET KREDITŮ],Kurzy[POŽADAVEK],'POČET KREDITŮ'!$B9,Kurzy[DOKONČENO],\"Ano\")","v":3}]
[null,"Volitelný kurz",{"$f":"IF(SUMIF(Kurzy[POŽADAVEK],'POČET KREDITŮ'!$B10,Kurzy[POČET KREDITŮ])=0,\"0\",SUMIF(Kurzy[POŽADAVEK],'POČET KREDITŮ'!$B10,Kurzy[POČET KREDITŮ]))","v":2},{"$f":"SUMIFS(Kurzy[POČET KREDITŮ],Kurzy[POŽADAVEK],'POČET KREDITŮ'!$B10,Kurzy[DOKONČENO],\"Ano\")","v":2},{"$f":"SUMIF(Kurzy[POŽADAVEK],'POČET KREDITŮ'!$B10,Kurzy[POČET KREDITŮ])-SUMIFS(Kurzy[POČET KREDITŮ],Kurzy[POŽADAVEK],'POČET KREDITŮ'!$B10,Kurzy[DOKONČENO],\"Ano\")","v":0}]
[null,"Všeobecný předmět",{"$f":"IF(SUMIF(Kurzy[POŽADAVEK],'POČET KREDITŮ'!$B11,Kurzy[POČET KREDITŮ])=0,\"0\",SUMIF(Kurzy[POŽADAVEK],'POČET KREDITŮ'!$B11,Kurzy[POČET KREDITŮ]))","v":"0"},{"$f":"SUMIFS(Kurzy[POČET KREDITŮ],Kurzy[POŽADAVEK],'POČET KREDITŮ'!$B11,Kurzy[DOKONČENO],\"Ano\")","v":0},{"$f":"SUMIF(Kurzy[POŽADAVEK],'POČET KREDITŮ'!$B11,Kurzy[POČET KREDITŮ])-SUMIFS(Kurzy[POČET KREDITŮ],Kurzy[POŽADAVEK],'POČET KREDITŮ'!$B11,Kurzy[DOKONČENO],\"Ano\")","v":0}]
[null,"Celkem",{"$f":"SUBTOTAL(109,'POČET KREDITŮ'!$C$8:$C$11)","v":9},{"$f":"SUBTOTAL(109,'POČET KREDITŮ'!$D$8:$D$11)","v":6},{"$f":"SUBTOTAL(109,'POČET KREDITŮ'!$E$8:$E$11)","v":3}]
[null,"Kurzy"]
[null,"NÁZEV KURZU","ČÍSLO KURZU","POŽADAVEK","POČET KREDITŮ","DOKONČENO","HODNOCENÍ","SEMESTR"]
[null,"Kurz 1","Číslo","Hlavní předmět",4,"Ano",{"v":4,"d":"4.0"},"Semestr 1"]
[null,"Kurz 2","Číslo","Vedlejší předmět",3,"Ne",null,"Semestr 1"]
[null,"Kurz 3","Číslo","Volitelný kurz",2,"Ano",{"v":3,"d":"3.0"},"Semestr 1"]

{"sheet":"ROZPOČET","index":2,"n_rows":15,"n_cols":4,"rows_kept":15}
[null,{"$f":"Vysoká_škola","v":"VŠ STUDIUM"}]
[null,"SLEDOVÁNÍ ROZPOČTU"]
[null,"Můj rozpočet",{"$f":"Rok","v":"ROK"}]
[null,"UTRACENÝCH % Z PŘÍJMU"]
[null,{"$f":"ČISTÉ_MĚSÍČNÍ_VÝDAJE/ČISTÝ_MĚSÍČNÍ_PŘÍJEM","v":{"v":0.7454545454545455,"d":"1 Kč"}}]
[null,{"$f":"B5","v":0.7454545454545455}]
[null,"ČISTÝ MĚSÍČNÍ PŘÍJEM","ČISTÉ MĚSÍČNÍ VÝDAJE","ZŮSTATEK"]
[null,{"$f":"C10","v":{"v":2750,"d":"2,750 Kč"}},{"$f":"'ČISTÉ MĚSÍČNÍ VÝDAJE'!C4+'SEMESTRÁLNÍ VÝDAJE'!D4","v":{"v":2050,"d":"2,050 Kč"}},{"$f":"ČISTÝ_MĚSÍČNÍ_PŘÍJEM-ČISTÉ_MĚSÍČNÍ_VÝDAJE","v":{"v":700,"d":"700 Kč"}}]
[null,"Měsíce v semestru",4]
[null,"MĚSÍČNÍ PŘÍJMY",{"$f":"SUM(MěsíčníPříjmy[ČÁSTKA])","v":{"v":2750,"d":"2,750 Kč"}}]
[null,"POLOŽKA","ČÁSTKA"]
[null,"Pevný příjem",{"v":1500,"d":"1,500 Kč"}]
[null,"Finanční pomoc",{"v":500,"d":"500 Kč"}]
[null,"Půjčky",{"v":500,"d":"500 Kč"}]
[null,"Ostatní příjmy",{"v":250,"d":"250 Kč"}]

{"sheet":"ČISTÉ MĚSÍČNÍ VÝDAJE","index":3,"n_rows":15,"n_cols":3,"rows_kept":15}
[null,{"$f":"Vysoká_škola","v":"VŠ STUDIUM"}]
[null,"SLEDOVÁNÍ ROZPOČTU"]
[null,"Měsíční výdaje",{"$f":"Rok","v":"ROK"}]
[null,"MĚSÍČNÍ VÝDAJE",{"$f":"SUM(MěsíčníVýdaje[ČÁSTKA])","v":{"v":1675,"d":"1,675 Kč"}}]
[null,"POLOŽKA","ČÁSTKA"]
[null,"Nájemné",{"v":300,"d":"300 Kč"}]
[null,"Služby",{"v":50,"d":"50 Kč"}]
[null,"Mobilní telefon",{"v":75,"d":"75 Kč"}]
[null,"Potraviny",{"v":250,"d":"250 Kč"}]
[null,"Výdaje na auto",{"v":50,"d":"50 Kč"}]
[null,"Studentské půjčky",{"v":500,"d":"500 Kč"}]
[null,"Platební karty",{"v":275,"d":"275 Kč"}]
[null,"Pojištění",{"v":125,"d":"125 Kč"}]
[null,"Zábava",{"v":50,"d":"50 Kč"}]
[null,"Různé",{"v":0,"d":"0 Kč"}]

{"sheet":"SEMESTRÁLNÍ VÝDAJE","index":4,"n_rows":11,"n_cols":4,"rows_kept":11}
[null,{"$f":"Vysoká_škola","v":"VŠ STUDIUM"}]
[null,"SLEDOVÁNÍ ROZPOČTU"]
[null,"Semestrální výdaje",{"$f":"Rok","v":"ROK"}]
[null,"SEMESTRÁLNÍ VÝDAJE (celkem/za měsíc)",{"$f":"SUM(SemestrálníVýdaje[ČÁSTKA])","v":{"v":1500,"d":"1,500 Kč"}},{"$f":"SUM(SemestrálníVýdaje[ZA MĚSÍC])","v":{"v":375,"d":"375 Kč"}}]
[null,"POLOŽKA","ČÁSTKA","ZA MĚSÍC"]
[null,"Školné",{"v":750,"d":"750 Kč"},{"$f":"SemestrálníVýdaje[[#This Row],[ČÁSTKA]]/Měsíce_v_semestru","v":{"v":187.5,"d":"188 Kč"}}]
[null,"Laboratorní poplatky",{"v":250,"d":"250 Kč"},{"$f":"SemestrálníVýdaje[[#This Row],[ČÁSTKA]]/Měsíce_v_semestru","v":{"v":62.5,"d":"63 Kč"}}]
[null,"Knihy",{"v":500,"d":"500 Kč"},{"$f":"SemestrálníVýdaje[[#This Row],[ČÁSTKA]]/Měsíce_v_semestru","v":{"v":125,"d":"125 Kč"}}]
[null,"Zálohy",{"v":0,"d":"0 Kč"},{"$f":"SemestrálníVýdaje[[#This Row],[ČÁSTKA]]/Měsíce_v_semestru","v":{"v":0,"d":"0 Kč"}}]
[null,"Doprava",{"v":0,"d":"0 Kč"},{"$f":"SemestrálníVýdaje[[#This Row],[ČÁSTKA]]/Měsíce_v_semestru","v":{"v":0,"d":"0 Kč"}}]
[null,"Ostatní poplatky",{"v":0,"d":"0 Kč"},{"$f":"SemestrálníVýdaje[[#This Row],[ČÁSTKA]]/Měsíce_v_semestru","v":{"v":0,"d":"0 Kč"}}]

{"sheet":"KNIHY","index":5,"n_rows":7,"n_cols":7,"rows_kept":7}
[null,{"$f":"Vysoká_škola","v":"VŠ STUDIUM"}]
[null,"SLEDOVÁNÍ KNIH"]
[null,"Seznam knih"]
[null,"NÁZEV","AUTOR","KURZ","KDE SE DÁ KOUPIT?","ISBN","POZNÁMKY"]
[null,"Název knihy","Autor","Kurz","Místo","Číslo"]
[null,"Název knihy","Autor","Kurz","Místo","Číslo"]
[null,"Název knihy","Autor","Kurz","Místo","Číslo"]